bitfinex-derivatives/quotes_BTCF0:USTF0_20210109
["timestamp","ask_amount","ask_price","bid_price","bid_amount"]
[1610209524761,0.28846684,40209.0,40208.0,0.01011779]
[1610209524961,0.28846684,40209.0,40207.0,0.01011776]
[1610209525361,0.28846684,40209.0,40206.0,0.0101177]
[1610209525562,0.28846684,40209.0,40208.0,0.01011752]
[1610209525961,0.28846684,40209.0,40207.0,0.01011752]
[1610209526161,0.28846684,40209.0,40208.0,0.01011752]
[1610209526561,0.28846684,40209.0,40208.0,0.00021834]
[1610209526762,0.28846684,40209.0,40206.0,0.01011755]
[1610209526963,0.28846684,40209.0,40208.0,0.00021834]
[1610209527162,0.28846684,40209.0,40207.0,0.00021834]
[1610209527363,0.28846684,40209.0,40208.0,0.00021834]
[1610209527664,0.28846684,40209.0,40206.0,0.01011755]
[1610209528067,0.28846684,40209.0,40208.0,0.00021834]
[1610209528265,0.28846684,40209.0,40207.0,0.00021834]
[1610209528467,0.28846684,40209.0,40208.0,0.00021834]
[1610209529067,0.28846684,40209.0,40206.0,0.01011755]
[1610209529267,0.28846684,40209.0,40208.0,0.00021834]
[1610209529666,0.28846684,40209.0,40207.0,0.00021834]
[1610209529866,0.28846684,40209.0,40208.0,0.00021834]
[1610209530371,0.28846684,40209.0,40206.0,0.01011755]
[1610209530569,0.28846684,40209.0,40208.0,0.00021832]
[1610209530968,0.28846684,40209.0,40206.0,0.01011753]
[1610209531169,0.28846684,40209.0,40208.0,0.00021832]
[1610209531371,0.28846684,40209.0,40207.0,0.00021832]
[1610209531669,0.28846684,40209.0,40206.0,0.01011753]
[1610209532069,0.28846684,40209.0,40208.0,0.00021832]
[1610209532269,0.15214076,40209.0,40207.0,0.00021832]
[1610209532470,0.15214076,40209.0,40208.0,0.00021832]
[1610209532671,0.15214076,40209.0,40208.0,3.43681832]
[1610209532970,0.15214076,40209.0,40208.0,3.47494009]
[1610209558708,0.15214076,40209.0,40208.0,3.52569238]
[1610209562912,0.00040302,40209.0,40208.0,3.52569238]
[1610209563312,0.00040302,40209.0,40208.0,3.47494009]
[1610209567717,0.00040302,40209.0,40208.0,3.55911009]
[1610209572524,0.00040302,40209.0,40208.0,0.12251009]
[1610209573123,0.00040302,40209.0,40208.0,0.09428609]
[1610209573825,0.00040302,40209.0,40208.0,4.23468609]
[1610209574225,0.00040302,40209.0,40208.0,4.25727769]
[1610209583642,0.00040302,40209.0,40208.0,5.75727769]
[1610209584444,0.09976,40229.0,40208.0,5.75727769]
[1610209584644,0.10078,40239.0,40208.0,5.75727769]
[1610209584845,3.4679,40261.0,40208.0,5.75727769]
[1610209585045,3.4679,40261.0,40216.0,2.56431863]
[1610209585243,0.16600295,40275.0,40216.0,2.56431863]
[1610209585444,0.1556,40275.0,40234.0,3.3437]
[1610209585645,0.0030343,40276.0,40234.0,3.3437]
[1610209585844,0.02196253,40277.0,40254.0,0.13632608]
[1610209585845,0.01040708,40277.0,40254.0,0.13632608]
[1610209586246,0.00303728,40275.0,40258.0,3.8366]
[1610209586448,0.08743728,40275.0,40258.0,3.8366]
[1610209586649,0.00030333,40274.0,40259.0,0.0002137]
[1610209587951,0.13632608,40260.0,40259.0,0.0002137]
[1610209588151,0.21478608,40260.0,40255.0,0.00021368]
[1610209588554,0.21478608,40260.0,40259.0,0.00021368]
[1610209588754,0.21478608,40260.0,40256.0,0.00021368]
[1610209588955,0.21478608,40260.0,40259.0,0.00021368]
[1610209589255,0.21478608,40260.0,40257.0,0.00021368]
[1610209589657,0.21478608,40260.0,40259.0,0.00021368]
[1610209589859,0.21478608,40260.0,40258.0,0.00021368]
[1610209590059,0.21478608,40260.0,40259.0,0.00021366]
[1610209590661,0.21478608,40260.0,40250.0,0.00021366]
[1610209590858,0.21478608,40260.0,40249.0,3.13092608]
[1610209590859,0.21478608,40260.0,40259.0,0.00021366]
[1610209591059,0.21478608,40260.0,40251.0,0.00021366]
[1610209591461,0.21478608,40260.0,40250.0,0.00021366]
[1610209591661,0.21478608,40260.0,40252.0,0.00021366]
[1610209591861,0.21478608,40260.0,40249.0,3.13092608]
[1610209591862,0.07846,40260.0,40256.0,0.13632608]
[1610209592266,0.07846,40260.0,40257.0,0.00021366]
[1610209593266,0.0844,40275.0,40250.0,0.00021366]
[1610209593464,0.1556,40278.0,40258.0,0.00021366]
[1610209593864,0.13632608,40259.0,40250.0,0.13653974]
[1610209594065,0.13632608,40259.0,40250.0,0.13632608]
[1610209594265,0.21506608,40259.0,40251.0,0.00021366]
[1610209595868,0.21506608,40259.0,40257.0,0.13632608]
[1610209596468,0.21506608,40259.0,40258.0,0.00021366]
[1610209600874,0.21506608,40259.0,40258.0,3.88231366]
[1610209601072,0.07874,40259.0,40258.0,3.88231366]
[1610209601272,0.1556,40278.0,40258.0,3.88231366]
[1610209601472,3.6155,40287.0,40258.0,3.88231366]
[1610209601673,3.6155,40287.0,40259.0,0.00021363]
[1610209601873,3.6155,40287.0,40266.0,0.13632608]
[1610209602874,0.00030327,40286.0,40266.0,0.13632608]
[1610209603075,0.09903,40286.0,40266.0,0.13632608]
[1610209603975,0.13632608,40267.0,40266.0,0.13632608]
[1610209604175,0.20971608,40267.0,40266.0,0.13632608]
[1610209604374,0.20971608,40267.0,40266.0,0.13653971]
[1610209606079,0.20971608,40267.0,40266.0,0.00021363]
[1610209606477,0.20971608,40267.0,40259.0,0.00021363]
[1610209606676,0.20971608,40267.0,40266.0,0.00021363]
[1610209606976,0.20971608,40267.0,40259.0,0.00021363]
[1610209607877,0.20971608,40267.0,40266.0,3.24992608]
[1610209608477,0.20971608,40267.0,40266.0,3.25013969]
[1610209608681,0.07339,40267.0,40266.0,3.25013969]
[1610209609078,0.09903,40286.0,40266.0,3.25013969]
[1610209609380,0.09903,40286.0,40267.0,0.00021359]
[1610209609580,0.00303215,40306.0,40267.0,0.00021359]
[1610209609779,0.00303099,40305.0,40267.0,0.00021359]
[1610209609979,0.0033342,40305.0,40276.0,0.13632608]
[1610209610181,0.00030321,40304.0,40281.0,0.4264]
[1610209610380,0.11944321,40304.0,40281.0,0.4264]
[1610209610782,0.00030321,40303.0,40281.0,0.4264]
[1610209610982,0.5435,40300.0,40282.0,0.00021358]
[1610209611185,2.7964,40292.0,40282.0,0.00021358]
[1610209611382,2.89,40292.0,40265.0,4.0165]
[1610209611582,0.00030321,40291.0,40265.0,4.0165]
[1610209611782,0.15590321,40291.0,40266.0,0.00021362]
[1610209611983,0.13632608,40267.0,40266.0,0.00021362]
[1610209612184,0.23391608,40267.0,40266.0,0.00021362]
[1610209612584,0.23391608,40267.0,40253.0,2.9374]
[1610209612983,0.23391608,40267.0,40266.0,0.00021367]
[1610209613185,0.23391608,40267.0,40253.0,2.9374]
[1610209613186,0.23391608,40267.0,40254.0,0.00021367]
[1610209613384,0.23391608,40267.0,40266.0,0.00021367]
[1610209613786,0.23391608,40267.0,40255.0,0.00021367]
[1610209613985,0.13632608,40256.0,40253.0,2.9374]
[1610209614184,0.21954608,40256.0,40253.0,2.9374]
[1610209614584,0.21954608,40256.0,40254.0,0.00021368]
[1610209617994,0.21954608,40256.0,40242.0,0.00021368]
[1610209618195,0.21954608,40256.0,40255.0,0.00021368]
[1610209618394,0.21954608,40256.0,40243.0,0.0002137]
[1610209618795,0.21954608,40256.0,40242.0,0.00021372]
[1610209618997,0.21954608,40256.0,40244.0,0.00021375]
[1610209619195,0.21954608,40256.0,40243.0,0.00021375]
[1610209619596,0.21954608,40256.0,40242.0,0.00021375]
[1610209619796,0.21954608,40256.0,40241.0,3.9377]
[1610209619797,0.21954608,40256.0,40244.0,0.00021375]
[1610209619996,0.13632608,40245.0,40243.0,0.00021375]
[1610209620195,0.24743608,40245.0,40243.0,0.00021375]
[1610209620396,0.24743608,40245.0,40242.0,0.00021373]
[1610209620597,0.24743608,40245.0,40244.0,0.00021373]
[1610209620795,0.24743608,40245.0,40243.0,0.00021373]
[1610209621199,0.24743608,40245.0,40232.0,0.00021373]
[1610209621396,0.24743608,40245.0,40244.0,0.00021373]
[1610209621597,0.24743608,40245.0,40233.0,0.00021373]
[1610209621997,0.11111,40245.0,40244.0,0.00021373]
[1610209622197,0.11111,40245.0,40234.0,0.00021373]
[1610209622397,0.11111,40245.0,40244.0,0.00021373]
[1610209622797,0.11111,40245.0,40235.0,0.00021373]
[1610209622996,0.11111,40245.0,40244.0,0.00021373]
[1610209623197,0.11111,40245.0,40236.0,0.00021373]
[1610209623597,0.11111,40245.0,40244.0,0.00021371]
[1610209623796,0.11111,40245.0,40237.0,0.00021371]
[1610209623998,0.13632608,40238.0,40231.0,4.0624]
[1610209624600,0.13632608,40238.0,40232.0,0.00021372]
[1610209625900,0.11111,40245.0,40234.0,0.13632608]
[1610209626201,2.8275,40255.0,40234.0,0.13632608]
[1610209626403,2.8275,40255.0,40235.0,0.00021372]
[1610209627001,2.8275,40255.0,40232.0,0.00021372]
[1610209627202,2.8275,40255.0,40236.0,0.00021372]
[1610209627602,2.8275,40255.0,40233.0,0.00021374]
[1610209627802,2.8275,40255.0,40237.0,0.00021374]
[1610209628003,0.13632608,40238.0,40234.0,0.00021376]
[1610209628203,0.24260608,40238.0,40234.0,0.00021376]
[1610209628403,0.24260608,40238.0,40231.0,4.0624]
[1610209628805,0.24260608,40238.0,40232.0,0.00021376]
[1610209629104,0.24260608,40238.0,40232.0,0.00042752]
[1610209629305,0.24260608,40238.0,40233.0,0.00021376]
[1610209630404,0.24260608,40238.0,40232.0,0.00042752]
[1610209632107,0.13632608,40233.0,40232.0,0.00042752]
[1610209632506,0.13632608,40233.0,40232.0,0.00064128]
[1610209633908,0.13632608,40233.0,40232.0,0.13696736]
[1610209637213,0.13632608,40233.0,40232.0,0.1367536]
[1610209637414,0.10628,40238.0,40232.0,0.13696731]
[1610209637614,2.8275,40255.0,40232.0,0.13696731]
[1610209637816,2.8275,40255.0,40233.0,0.00021371]
[1610209638017,2.8275,40255.0,40239.0,0.13632608]
[1610209638420,2.8275,40255.0,40232.0,0.00042752]
[1610209638421,2.8275,40255.0,40240.0,0.00021371]
[1610209638616,2.8275,40255.0,40232.0,0.00042752]
[1610209639116,2.8275,40255.0,40233.0,0.00021374]
[1610209639519,1.5,40254.0,40233.0,0.00021374]
[1610209639716,2.9331,40234.0,40233.0,0.00021374]
[1610209639916,3.17052608,40234.0,40233.0,0.00021374]
[1610209640317,3.17052608,40234.0,40232.0,0.00042752]
[1610209641518,0.0003036,40233.0,40232.0,0.00042752]
[1610209642617,3.8717036,40233.0,40232.0,0.00042752]
[1610209643418,3.8714,40233.0,40232.0,0.00042752]
[1610209649126,3.8714,40233.0,40198.0,3.558]
[1610209649525,3.8714,40233.0,40199.0,0.00020852]
[1610209650126,0.13632608,40200.0,40199.0,0.00020852]
[1610209650327,0.21538608,40200.0,40199.0,0.00020852]
[1610209650725,0.21538608,40200.0,40195.0,0.00020852]
[1610209650926,0.21538608,40200.0,40199.0,0.00020852]
[1610209651125,0.21538608,40200.0,40196.0,0.00020852]
[1610209651526,0.21538608,40200.0,40199.0,0.00020852]
[1610209651726,0.21538608,40200.0,40197.0,0.00020852]
[1610209651925,0.21538608,40200.0,40199.0,0.00020852]
[1610209652126,0.21538608,40200.0,40199.0,0.1365346]
[1610209652327,0.07906,40200.0,40199.0,0.71242608]
[1610209652526,0.07906,40200.0,40199.0,0.71263458]
[1610209653527,0.07906,40200.0,40199.0,0.13653458]
[1610209654128,0.21538608,40200.0,40199.0,0.13653458]
[1610209656128,0.21538608,40200.0,40199.0,0.0002085]
[1610209656727,0.21538608,40200.0,40179.0,3.8235]
[1610209656728,0.21538608,40200.0,40180.0,0.0002085]
[1610209657128,0.21538608,40200.0,40179.0,3.8235]
[1610209657328,0.21538608,40200.0,40181.0,0.00020852]
[1610209657530,0.21538608,40200.0,40180.0,0.00020852]
[1610209657828,0.21538608,40200.0,40182.0,0.00020852]
[1610209658028,0.07906,40200.0,40190.0,0.13632608]
[1610209658227,3.0163,40204.0,40190.0,0.13632608]
[1610209658529,3.0163,40204.0,40191.0,0.00020852]
[1610209660133,0.13632608,40192.0,40191.0,0.00020852]
[1610209660330,0.22461608,40192.0,40191.0,0.00020852]
[1610209660532,0.22461608,40192.0,40179.0,3.8235]
[1610209660932,0.22461608,40192.0,40180.0,0.00020853]
[1610209662132,0.08829,40192.0,40185.0,0.13632608]
[1610209664236,0.13632608,40186.0,40185.0,0.13632608]
[1610209665237,0.13632608,40186.0,40154.0,2.539175]
[1610209665440,0.13632608,40186.0,40185.0,0.00020857]
[1610209665838,0.62822608,40186.0,40169.0,2.8025]
[1610209666038,0.13632608,40186.0,40185.0,0.00020857]
[1610209666238,0.08829,40192.0,40170.0,0.00020861]
[1610209666439,3.2995,40186.0,40170.0,0.00020861]
[1610209666639,0.09984,40186.0,40162.0,0.00020861]
[1610209666841,3.8482,40180.0,40148.0,3.9533]
[1610209667041,3.8482,40180.0,40163.0,0.00020865]
[1610209667241,0.09984,40186.0,40163.0,0.00020865]
[1610209667442,0.09984,40186.0,40171.0,3.3769]
[1610209667642,0.09984,40186.0,40164.0,0.00020865]
[1610209667841,0.09984,40186.0,40147.0,3.4874]
[1610209668243,0.09984,40186.0,40160.0,0.13632608]
[1610209668645,0.09984,40186.0,40161.0,0.00020866]
[1610209670144,0.13632608,40162.0,40161.0,0.00020866]
[1610209670546,0.21435608,40162.0,40161.0,0.00020866]
[1610209671145,0.21435608,40162.0,40142.0,3.06410466]
[1610209671345,0.21435608,40162.0,40161.0,0.00020869]
[1610209671546,0.21435608,40162.0,40143.0,0.00780549]
[1610209672147,0.07803,40162.0,40153.0,0.13632608]
[1610209672347,0.07803,40162.0,40143.0,0.00780549]
[1610209674150,0.07803,40162.0,40149.0,0.13632608]
[1610209674552,0.07803,40162.0,40150.0,0.00020869]
[1610209675652,3.5418,40154.0,40150.0,0.00020869]
[1610209675854,3.63936,40154.0,40150.0,0.00020869]
[1610209676051,3.63936,40154.0,40141.0,0.00020879]
[1610209676253,0.13632608,40142.0,40141.0,0.00020879]
[1610209680160,3.53042608,40142.0,40141.0,0.00020879]
[1610209680960,3.53042608,40142.0,40140.0,0.1]
[1610209681360,0.13632608,40142.0,40140.0,0.1]
[1610209681561,0.08015,40144.0,40140.0,0.1]
[1610209681762,0.08015,40144.0,40141.0,0.00020878]
[1610209681961,0.08015,40144.0,40143.0,0.2686]
[1610209682363,0.08015,40144.0,40143.0,0.40492608]
[1610209682564,0.08015,40144.0,40143.0,0.40513482]
[1610209684266,0.21647608,40144.0,40143.0,0.40513482]
[1610209684465,0.08015,40144.0,40143.0,0.40513482]
[1610209684866,0.09756,40154.0,40143.0,0.40513482]
[1610209685065,0.2891,40184.0,40143.0,0.40513482]
[1610209685266,0.2891,40184.0,40144.0,0.00020877]
[1610209686266,0.13632608,40145.0,40144.0,0.00020877]
[1610209687665,0.11573,40147.0,40144.0,0.00020877]
[1610209688268,0.11573,40147.0,40145.0,0.13632608]
[1610209688666,0.11573,40147.0,40146.0,0.00020877]
[1610209689567,0.11573,40147.0,40141.0,0.00020877]
[1610209689767,0.11573,40147.0,40140.0,0.1]
[1610209689768,0.11573,40147.0,40146.0,0.00020877]
[1610209689967,0.11573,40147.0,40142.0,0.00020879]
[1610209690368,0.13632608,40143.0,40141.0,0.00020879]
[1610209690568,0.13632608,40143.0,40140.0,0.1]
[1610209690769,0.13632608,40143.0,40142.0,0.0002088]
[1610209691171,0.13632608,40143.0,40141.0,0.0002088]
[1610209691368,0.13632608,40143.0,40142.0,0.0002088]
[1610209691870,0.13632608,40143.0,40141.0,0.0002088]
[1610209692270,0.13632608,40143.0,40142.0,0.00020878]
[1610209692674,0.13632608,40143.0,40136.0,0.00020878]
[1610209692972,0.13632608,40143.0,40142.0,0.00020878]
[1610209693172,0.13632608,40143.0,40137.0,0.00020878]
[1610209693573,0.13632608,40143.0,40142.0,0.00020878]
[1610209693772,0.13632608,40143.0,40138.0,0.00020878]
[1610209693973,0.13632608,40143.0,40142.0,0.00020878]
[1610209694374,0.13632608,40143.0,40139.0,0.0002088]
[1610209694577,0.13632608,40143.0,40142.0,0.0002088]
[1610209694775,0.13632608,40143.0,40119.0,0.08585]
[1610209694776,0.13632608,40143.0,40140.0,0.0002088]
[1610209695175,0.13632608,40143.0,40142.0,0.00020882]
[1610209695375,0.13632608,40143.0,40141.0,0.00020882]
[1610209695576,0.13632608,40143.0,40142.0,0.00020884]
[1610209696276,0.13632608,40143.0,40123.0,0.00780994]
[1610209696475,0.13632608,40143.0,40142.0,0.00020882]
[1610209696676,0.13632608,40143.0,40124.0,0.00780992]
[1610209697077,0.13632608,40143.0,40142.0,0.00020882]
[1610209697276,0.13632608,40143.0,40125.0,0.00020886]
[1610209697479,0.13632608,40143.0,40142.0,0.00020886]
[1610209697878,0.13632608,40143.0,40126.0,0.00020884]
[1610209698078,0.13632608,40143.0,40142.0,0.00020884]
[1610209698278,0.13632608,40143.0,40127.0,0.00020884]
[1610209698478,4.1763,40130.0,40123.0,0.00781059]
[1610209698681,4.26244,40130.0,40123.0,0.00781059]
[1610209698879,4.26244,40130.0,40115.0,0.0002089]
[1610209699080,4.26244,40130.0,40124.0,0.0002089]
[1610209699280,4.26244,40130.0,40113.0,0.00781379]
[1610209699681,4.26244,40130.0,40110.0,0.00781381]
[1610209699882,4.26244,40130.0,40114.0,0.00781422]
[1610209700282,0.13632608,40115.0,40111.0,0.00020896]
[1610209700482,0.13632608,40115.0,40106.0,0.13632608]
[1610209700682,0.13632608,40115.0,40107.0,0.00020896]
[1610209701987,0.13632608,40115.0,40100.0,0.00020896]
[1610209702186,0.22386608,40115.0,40100.0,0.00020896]
[1610209702386,0.13632608,40101.0,40100.0,0.13653504]
[1610209702587,0.08754,40115.0,40100.0,3.70752608]
[1610209702786,0.08754,40115.0,40100.0,3.70773506]
[1610209703189,0.08754,40115.0,40101.0,0.00020896]
[1610209703389,0.08754,40115.0,40101.0,0.00781477]
[1610209704190,0.08754,40115.0,40101.0,0.00020896]
[1610209704390,0.08754,40115.0,40107.0,0.13632608]
[1610209704789,0.08754,40115.0,40108.0,0.00020355]
[1610209705391,0.08754,40115.0,40099.0,0.07834]
[1610209705590,0.08754,40115.0,40100.0,0.00020356]
[1610209706393,0.13632608,40101.0,40100.0,0.00020356]
[1610209707194,0.13632608,40101.0,40092.0,0.00020363]
[1610209707393,0.13632608,40101.0,40091.0,0.00020365]
[1610209708194,0.13632608,40101.0,40078.0,0.00020365]
[1610209708397,0.10505,40106.0,40078.0,0.00020365]
[1610209708596,0.10505,40106.0,40077.0,0.00020367]
[1610209708796,0.10505,40106.0,40076.0,0.10472367]
[1610209708996,3.5142,40100.0,40077.0,0.00020367]
[1610209709396,0.10505,40106.0,40076.0,0.10452]
[1610209709596,3.5983,40086.0,40068.0,2.53768552]
[1610209710000,3.5983,40086.0,40067.0,0.09311]
[1610209710197,0.0814,40088.0,40067.0,0.09311]
[1610209710397,0.13632608,40071.0,40070.0,0.13632608]
[1610209710599,0.13632608,40071.0,40067.0,0.09311]
[1610209710798,0.0814,40088.0,40067.0,0.09311]
[1610209711397,0.0814,40088.0,40068.0,0.00020372]
[1610209712401,0.0814,40088.0,40080.0,0.53792608]
[1610209712602,0.10505,40106.0,40080.0,0.53792608]
[1610209712801,0.46051554,40101.0,40080.0,0.13632608]
[1610209713002,0.57252554,40101.0,40083.0,3.8379]
[1610209714404,0.57252554,40101.0,40100.0,0.13632608]
[1610209714603,0.57252554,40101.0,40100.0,3.24332608]
[1610209714804,0.57252554,40101.0,40100.0,3.45382608]
[1610209715004,0.46051554,40101.0,40100.0,3.45382608]
[1610209715403,0.46051554,40101.0,40100.0,0.13632608]
[1610209715804,0.00457409,40101.0,40100.0,0.13632608]
[1610209718708,2.9594,40143.0,40100.0,0.13632608]
[1610209719108,2.9594,40143.0,40101.0,0.00020352]
[1610209719509,2.9594,40143.0,40100.0,0.13632608]
[1610209719711,3.04569,40143.0,40100.0,0.13632608]
[1610209720309,0.13632608,40101.0,40094.0,3.8283]
[1610209720509,0.13632608,40101.0,40082.0,2.53501486]
[1610209720510,0.13632608,40101.0,40074.0,2.53600229]
[1610209720710,0.13632608,40101.0,40080.0,3.1616]
[1610209721110,0.13632608,40101.0,40081.0,0.00020362]
[1610209721510,0.07592,40105.0,40081.0,0.00020362]
[1610209722313,0.07592,40105.0,40104.0,0.13632608]
[1610209723709,0.07592,40105.0,40104.0,0.13652966]
[1610209723911,0.07592,40105.0,40104.0,0.13632608]
[1610209725013,0.07592,40105.0,40104.0,0.13652965]
[1610209725411,0.07592,40105.0,40086.0,3.2184]
[1610209725611,0.08822,40106.0,40086.0,3.2184]
[1610209725813,0.08822,40106.0,40087.0,0.00020358]
[1610209726211,0.08822,40106.0,40087.0,0.0078105]
[1610209726412,0.08822,40106.0,40096.0,0.13632608]
[1610209727011,0.08822,40106.0,40097.0,0.00020358]
[1610209727712,0.08822,40106.0,40087.0,0.00781072]
[1610209727914,0.08822,40106.0,40098.0,0.00020358]
[1610209728312,0.08822,40106.0,40096.0,3.4019]
[1610209728313,0.08822,40106.0,40102.0,0.13632608]
[1610209728712,0.08822,40106.0,40103.0,0.00020356]
[1610209730716,0.13632608,40113.0,40103.0,0.00780931]
[1610209731118,0.2979,40142.0,40103.0,0.00780931]
[1610209731316,0.2867,40167.0,40103.0,0.00780931]
[1610209731916,0.2867,40167.0,40112.0,2.9093]
[1610209732318,0.00030421,40166.0,40119.0,0.13632608]
[1610209732517,0.08938421,40166.0,40119.0,0.13632608]
[1610209732721,0.08938421,40166.0,40120.0,0.00020352]
[1610209732917,0.0738,40165.0,40120.0,0.00020352]
[1610209733119,0.07410419,40165.0,40120.0,0.00020352]
[1610209733318,0.00030419,40164.0,40137.0,2.8394]
[1610209733923,0.08908,40166.0,40138.0,0.00020348]
[1610209734321,0.08908,40166.0,40147.0,0.13632608]
[1610209734519,0.08908,40166.0,40148.0,0.427]
[1610209734720,0.0757,40165.0,40148.0,0.427]
[1610209734921,0.0757,40165.0,40149.0,0.00020341]
[1610209735322,0.08908,40166.0,40149.0,0.00020341]
[1610209735721,0.0754,40165.0,40149.0,0.00020341]
[1610209736323,0.0754,40165.0,40154.0,0.13632608]
[1610209736522,0.08908,40166.0,40154.0,0.13632608]
[1610209736722,0.08908,40166.0,40155.0,0.00020339]
[1610209737525,0.0756,40165.0,40155.0,0.00020339]
[1610209737926,0.17714,40165.0,40155.0,0.00020339]
[1610209738125,0.10154,40165.0,40155.0,0.00020339]
[1610209738326,0.13632608,40156.0,40146.0,0.00020339]
[1610209738526,0.25161608,40156.0,40141.0,0.13632608]
[1610209738825,0.25161608,40156.0,40142.0,0.00020342]
[1610209739426,0.0738,40155.0,40142.0,0.00020342]
[1610209739627,0.25161608,40156.0,40142.0,0.00020342]
[1610209740430,0.13632608,40143.0,40142.0,0.00020342]
[1610209741526,0.21062608,40143.0,40142.0,0.00020342]
[1610209742027,0.13632608,40143.0,40142.0,0.00020342]
[1610209742829,0.13632608,40143.0,40130.0,0.0002034]
[1610209743030,0.21152608,40143.0,40130.0,0.0002034]
[1610209743228,0.21152608,40143.0,40142.0,0.00020344]
[1610209743429,0.21152608,40143.0,40131.0,0.00020346]
[1610209743630,0.21152608,40143.0,40142.0,0.00020346]
[1610209744031,0.21152608,40143.0,40132.0,0.00020348]
[1610209744231,0.13632608,40143.0,40115.0,3.0689]
[1610209744430,0.13632608,40116.0,40115.0,3.0689]
[1610209745032,0.07659,40121.0,40115.0,3.0689]
[1610209745033,0.07659,40121.0,40115.0,3.07670788]
[1610209745232,0.07659,40121.0,40115.0,3.0691035]
[1610209745634,0.07659,40121.0,40116.0,0.0002035]
[1610209746333,0.07659,40121.0,40120.0,0.13632608]
[1610209746533,0.07659,40121.0,40116.0,0.0002035]
[1610209747133,0.07659,40121.0,40116.0,0.00780754]
[1610209747735,0.07659,40121.0,40105.0,0.00780798]
[1610209747934,0.07659,40121.0,40117.0,0.00020352]
[1610209748334,0.07659,40121.0,40108.0,0.13632608]
[1610209748536,0.07659,40121.0,40118.0,0.00020352]
[1610209748736,0.07659,40121.0,40109.0,0.00780859]
[1610209748936,0.07659,40121.0,40119.0,0.00020352]
[1610209749236,0.0738,40120.0,40109.0,0.00780859]
[1610209749436,0.0738,40120.0,40109.0,0.00760507]
[1610209749837,0.0738,40120.0,40109.0,0.00780858]
[1610209750037,0.07659,40121.0,40109.0,0.00780858]
[1610209750237,0.13632608,40122.0,40109.0,0.00780858]
[1610209750438,0.13632608,40110.0,40109.0,0.00780858]
[1610209750640,0.22299608,40110.0,40109.0,0.00780858]
[1610209750839,0.22299608,40110.0,40102.0,0.00780894]
[1610209751238,0.22299608,40110.0,40084.0,3.8898]
[1610209751239,0.0757,40109.0,40096.0,2.55229666]
[1610209751439,0.0757,40109.0,40103.0,0.00020358]
[1610209751639,0.0757,40109.0,40097.0,0.00020361]
[1610209751837,0.22299608,40110.0,40097.0,0.00020361]
[1610209752039,0.22299608,40110.0,40104.0,0.00020361]
[1610209752239,0.22299608,40110.0,40098.0,0.00020361]
[1610209752439,0.13632608,40099.0,40091.0,0.13632608]
[1610209752638,0.25095608,40099.0,40091.0,0.13632608]
[1610209752838,0.25095608,40099.0,40093.0,0.00760791]
[1610209753037,0.075,40098.0,40092.0,0.00781158]
[1610209753239,0.075,40098.0,40094.0,0.00020361]
[1610209753639,0.075,40098.0,40093.0,0.00020363]
[1610209753839,0.075,40098.0,40095.0,0.00020363]
[1610209754039,0.25095608,40099.0,40094.0,0.00020365]
[1610209754440,0.25095608,40099.0,40096.0,0.00020365]
[1610209754639,0.25095608,40099.0,40095.0,0.00020366]
[1610209754840,0.25095608,40099.0,40097.0,0.00020366]
[1610209755240,0.25095608,40099.0,40096.0,0.00020366]
[1610209755440,0.25095608,40099.0,40098.0,0.00020366]
[1610209755640,0.25095608,40099.0,40097.0,0.00020366]
[1610209756040,0.25095608,40099.0,40098.0,0.00020366]
[1610209756440,0.25095608,40099.0,40083.0,0.00781311]
[1610209756843,0.25095608,40099.0,40098.0,0.00020366]
[1610209757042,0.25095608,40099.0,40084.0,0.00020366]
[1610209757242,0.32495608,40099.0,40098.0,0.00020366]
[1610209757443,0.25095608,40099.0,40081.0,0.00760952]
[1610209757643,0.25095608,40099.0,40085.0,0.00020368]
[1610209758044,0.25095608,40099.0,40086.0,0.00020369]
[1610209758445,0.13632608,40087.0,40086.0,0.00020369]
[1610209761245,0.13632608,40087.0,40085.0,0.00020368]
[1610209767750,3.4881,40086.0,40085.0,0.00020368]
[1610209768750,4.9881,40086.0,40085.0,0.00020368]
[1610209769954,4.9881,40086.0,40049.0,0.00761446]
[1610209770153,1.5,40086.0,40042.0,2.54907752]
[1610209770354,3.3776,40060.0,40050.0,0.00020062]
[1610209770553,0.13632608,40051.0,40043.0,0.00020065]
[1610209770755,0.4622,40047.0,40043.0,0.00020065]
[1610209770954,0.13632608,40051.0,40036.0,0.02757796]
[1610209771154,0.13632608,40051.0,40037.0,0.00020062]
[1610209771955,0.13632608,40051.0,40036.0,0.02757796]
[1610209772155,0.24094608,40051.0,40036.0,0.02757796]
[1610209772555,0.13632608,40037.0,40036.0,0.02757796]
[1610209772755,0.21012608,40037.0,40036.0,0.02757796]
[1610209772955,0.10462,40051.0,40036.0,0.01507796]
[1610209773156,0.10462,40051.0,40018.0,0.01702796]
[1610209773557,3.659,40048.0,40018.0,0.01702796]
[1610209774556,0.13632608,40019.0,40018.0,0.15335404]
[1610209774958,0.1121,40035.0,40018.0,0.15335404]
[1610209776463,0.13632608,40024.0,40018.0,0.15335404]
[1610209776660,0.1121,40035.0,40018.0,0.15335404]
[1610209777262,0.2861,40065.0,40018.0,0.15335404]
[1610209778563,0.13632608,40042.0,40036.0,0.13632608]
[1610209778763,0.13632608,40042.0,40018.0,0.01702796]
[1610209779166,0.13632608,40042.0,40014.0,3.2384]
[1610209779766,0.09412,40051.0,40009.0,0.10938]
[1610209780165,0.5714,40088.0,40028.0,3.8832]
[1610209780367,0.5714,40088.0,40028.0,3.98649]
[1610209780568,0.13632608,40066.0,40060.0,0.13632608]
[1610209780768,0.10887,40075.0,40060.0,0.13632608]
[1610209782469,0.10887,40075.0,40074.0,0.13632608]
[1610209783071,0.10887,40075.0,40058.0,3.8847]
[1610209784475,0.10887,40075.0,40051.0,0.07778]
[1610209784476,0.13632608,40059.0,40051.0,0.07778]
[1610209786071,0.13632608,40059.0,40042.0,0.13632608]
[1610209787074,0.13632608,40059.0,40028.0,0.10329]
[1610209787274,0.13632608,40059.0,40019.0,2.893]
[1610209788473,0.13632608,40031.0,40027.0,0.13632608]
[1610209789074,0.13632608,40031.0,40003.0,3.981]
[1610209789275,0.09752,40051.0,40003.0,3.981]
[1610209789476,0.2837,40050.0,40003.0,4.07987]
[1610209789874,0.2837,40050.0,40003.0,0.09887]
[1610209790274,0.09752,40051.0,40011.0,2.9043]
[1610209790475,0.10618,40060.0,40038.0,0.13632608]
[1610209790876,0.10618,40060.0,40036.0,0.1153]
[1610209791975,0.13632608,40062.0,40036.0,0.1153]
[1610209792577,0.13632608,40037.0,40036.0,0.1153]
[1610209792977,0.13632608,40037.0,40027.0,0.13632608]
[1610209794578,0.13632608,40028.0,40027.0,0.13632608]
[1610209795679,0.11791,40042.0,40027.0,0.13632608]